[Event "Late-Titled-Tuesday-Blitz-September-19-2023"]
[Site "Chess.com"]
[Date "2023.09.19"]
[Round "11"]
[White "dropstoneDP"]
[Black "VitaliyBernadskiy"]
[Result "1-0"]
[WhiteElo "3060"]
[BlackElo "2879"]
[TimeControl "180+1"]
[EndTime "16:03:20 PDT"]
[Termination "dropstoneDP won by resignation"]

1. e4 {[%clk 0:03:00.9]} 1... c5 {[%clk 0:02:58.7]} 2. Nf3 {[%clk 0:03:01]} 2...
d6 {[%clk 0:02:57.2]} 3. d4 {[%clk 0:03:01.5]} 3... cxd4 {[%clk 0:02:58.1]} 4.
Nxd4 {[%clk 0:03:02.2]} 4... Nf6 {[%clk 0:02:58.5]} 5. Nc3 {[%clk 0:03:02.6]}
5... g6 {[%clk 0:02:58.9]} 6. Be3 {[%clk 0:03:02.6]} 6... Nc6 {[%clk 0:02:59.1]}
7. f3 {[%clk 0:03:00.9]} 7... h5 {[%clk 0:02:59.1]} 8. Bc4 {[%clk 0:02:59]} 8...
Bg7 {[%clk 0:02:58.7]} 9. Qd2 {[%clk 0:02:58.6]} 9... Bd7 {[%clk 0:02:53.7]} 10.
O-O-O {[%clk 0:02:56]} 10... Ne5 {[%clk 0:02:50.8]} 11. Bb3 {[%clk 0:02:54.8]}
11... Rc8 {[%clk 0:02:50.9]} 12. Kb1 {[%clk 0:02:53.2]} 12... Nc4 {[%clk
0:02:47.5]} 13. Bxc4 {[%clk 0:02:47.2]} 13... Rxc4 {[%clk 0:02:48.4]} 14. h3
{[%clk 0:02:44.6]} 14... a6 {[%clk 0:02:33.4]} 15. g4 {[%clk 0:02:42.1]} 15...
b5 {[%clk 0:02:33.2]} 16. g5 {[%clk 0:02:39.2]} 16... Nh7 {[%clk 0:02:30.6]} 17.
h4 {[%clk 0:02:32.8]} 17... Nf8 {[%clk 0:02:21]} 18. Nd5 {[%clk 0:02:27.2]}
18... Ne6 {[%clk 0:02:18.6]} 19. Nxe6 {[%clk 0:02:23.5]} 19... Bxe6 {[%clk
0:02:17.5]} 20. b3 {[%clk 0:02:21.3]} 20... Bxd5 {[%clk 0:01:22.7]} 21. Qxd5
{[%clk 0:02:17.8]} 21... Qa5 {[%clk 0:01:08]} 22. Rd3 {[%clk 0:01:31.9]} 22...
Rxc2 {[%clk 0:00:38.5]} 23. Kxc2 {[%clk 0:01:30.2]} 23... Qxa2+ {[%clk
0:00:38.5]} 24. Kd1 {[%clk 0:01:30.7]} 24... Qb1+ {[%clk 0:00:37.3]} 25. Ke2
{[%clk 0:01:30.2]} 25... Qxh1 {[%clk 0:00:38.2]} 26. Qc6+ {[%clk 0:01:29.2]} 1-0

[Event "Late-Titled-Tuesday-Blitz-September-19-2023"]
[Site "Chess.com"]
[Date "2023.09.19"]
[Round "11"]
[White "Arimin1329"]
[Black "Mimsychess"]
[Result "0-1"]
[WhiteElo "2278"]
[BlackElo "2361"]
[TimeControl "180+1"]
[EndTime "16:03:22 PDT"]
[Termination "Mimsychess won by resignation"]

1. d4 {[%clk 0:02:58.6]} 1... d5 {[%clk 0:02:52.9]} 2. Nf3 {[%clk 0:02:57.1]}
2... Nf6 {[%clk 0:02:48.3]} 3. b3 {[%clk 0:02:57.4]} 3... Bf5 {[%clk 0:02:27]}
4. Bb2 {[%clk 0:02:57.6]} 4... a5 {[%clk 0:02:18.3]} 5. a4 {[%clk 0:02:53.2]}
5... h6 {[%clk 0:02:12.7]} 6. e3 {[%clk 0:02:53.3]} 6... e6 {[%clk 0:02:09.7]}
7. Bd3 {[%clk 0:02:53.6]} 7... Bb4+ {[%clk 0:01:58.8]} 8. c3 {[%clk 0:02:50.6]}
8... Bd6 {[%clk 0:01:47.7]} 9. Bxf5 {[%clk 0:02:48.2]} 9... exf5 {[%clk
0:01:48.6]} 10. g3 {[%clk 0:02:45.6]} 10... O-O {[%clk 0:01:47.2]} 11. Nbd2
{[%clk 0:02:45.8]} 11... c6 {[%clk 0:01:40.4]} 12. Ba3 {[%clk 0:02:45.7]} 12...
Re8 {[%clk 0:01:37.4]} 13. Bxd6 {[%clk 0:02:45.3]} 13... Qxd6 {[%clk 0:01:38.3]}
14. Ne5 {[%clk 0:02:45.6]} 14... Nbd7 {[%clk 0:01:35.8]} 15. Ndf3 {[%clk
0:02:45.3]} 15... Ne4 {[%clk 0:01:35.2]} 16. Qc2 {[%clk 0:02:42.4]} 16... Nxe5
{[%clk 0:01:33]} 17. Nxe5 {[%clk 0:02:41.9]} 17... Rxe5 {[%clk 0:01:24.8]} 18.
dxe5 {[%clk 0:02:40.6]} 18... Qxe5 {[%clk 0:01:25.7]} 19. Rc1 {[%clk 0:02:38.3]}
19... Rd8 {[%clk 0:01:20]} 20. O-O {[%clk 0:02:28.9]} 20... Rd6 {[%clk 0:01:16]}
21. f3 {[%clk 0:02:21.8]} 21... Nc5 {[%clk 0:01:01.3]} 22. Rce1 {[%clk 0:02:21]}
22... h5 {[%clk 0:00:59.8]} 23. b4 {[%clk 0:02:15.2]} 23... Nd7 {[%clk
0:00:53.4]} 24. e4 {[%clk 0:01:57.9]} 24... dxe4 {[%clk 0:00:43.7]} 25. fxe4
{[%clk 0:01:58.8]} 25... axb4 {[%clk 0:00:40.3]} 26. cxb4 {[%clk 0:01:49.5]}
26... Qd4+ {[%clk 0:00:39.2]} 27. Kh1 {[%clk 0:01:49.5]} 27... Qxb4 {[%clk
0:00:32.8]} 28. exf5 {[%clk 0:01:46.5]} 28... Nf6 {[%clk 0:00:32.7]} 29. Rf4
{[%clk 0:01:37.6]} 29... Qxe1+ {[%clk 0:00:32.4]} 0-1

[Event "Late-Titled-Tuesday-Blitz-September-19-2023"]
[Site "Chess.com"]
[Date "2023.09.19"]
[Round "11"]
[White "Chessbard1972"]
[Black "Der_Honigdachs"]
[Result "0-1"]
[WhiteElo "2380"]
[BlackElo "2524"]
[TimeControl "180+1"]
[EndTime "16:03:28 PDT"]
[Termination "Der_Honigdachs won by resignation"]

1. e4 {[%clk 0:02:45.7]} 1... d5 {[%clk 0:02:59.9]} 2. exd5 {[%clk 0:02:45.3]}
2... Qxd5 {[%clk 0:03:00.6]} 3. Nc3 {[%clk 0:02:44.9]} 3... Qd6 {[%clk 0:03:01]}
4. d4 {[%clk 0:02:44]} 4... Nf6 {[%clk 0:03:01.2]} 5. Bc4 {[%clk 0:02:43.2]}
5... c6 {[%clk 0:03:01.1]} 6. Nge2 {[%clk 0:02:40.4]} 6... Bf5 {[%clk
0:02:58.8]} 7. O-O {[%clk 0:02:37.8]} 7... e6 {[%clk 0:02:57.4]} 8. Bf4 {[%clk
0:02:36.5]} 8... Qd8 {[%clk 0:02:56.2]} 9. Ng3 {[%clk 0:02:34.3]} 9... Bg6
{[%clk 0:02:55.6]} 10. Re1 {[%clk 0:02:29.9]} 10... Bd6 {[%clk 0:02:54.9]} 11.
Bxd6 {[%clk 0:02:20.4]} 11... Qxd6 {[%clk 0:02:55.4]} 12. Nge4 {[%clk 0:02:13]}
12... Nxe4 {[%clk 0:02:52.8]} 13. Nxe4 {[%clk 0:02:12.6]} 13... Qb4 {[%clk
0:02:52.7]} 14. Bb3 {[%clk 0:02:10.1]} 14... O-O {[%clk 0:02:51.3]} 15. h4
{[%clk 0:02:05.7]} 15... a5 {[%clk 0:02:49.7]} 16. c3 {[%clk 0:02:00.6]} 16...
Qb6 {[%clk 0:02:47.3]} 17. a4 {[%clk 0:01:48.8]} 17... Nd7 {[%clk 0:02:46.7]}
18. h5 {[%clk 0:01:47.4]} 18... Bxe4 {[%clk 0:02:45.5]} 19. Rxe4 {[%clk
0:01:47.5]} 19... Nf6 {[%clk 0:02:42.7]} 20. Re5 {[%clk 0:01:47.3]} 20... h6
{[%clk 0:02:41.2]} 21. Rb1 {[%clk 0:01:39.6]} 21... Rfd8 {[%clk 0:02:39.6]} 22.
Bc2 {[%clk 0:01:27.8]} 22... Rac8 {[%clk 0:02:38.2]} 23. Qe2 {[%clk 0:01:18.7]}
23... c5 {[%clk 0:02:35.3]} 24. dxc5 {[%clk 0:01:12.1]} 24... Rxc5 {[%clk
0:02:36]} 25. Rxc5 {[%clk 0:01:05.3]} 25... Qxc5 {[%clk 0:02:35.4]} 26. g4
{[%clk 0:01:02.8]} 26... Qg5 {[%clk 0:02:30.7]} 27. Rd1 {[%clk 0:00:53.6]} 27...
Rxd1+ {[%clk 0:02:24.3]} 28. Bxd1 {[%clk 0:00:52.9]} 28... Nxh5 {[%clk
0:02:22.4]} 29. Qe4 {[%clk 0:00:23.5]} 29... Nf6 {[%clk 0:02:01.7]} 30. Qxb7
{[%clk 0:00:20.8]} 30... Qc1 {[%clk 0:02:01.4]} 31. Qb8+ {[%clk 0:00:14.7]}
31... Kh7 {[%clk 0:02:00.6]} 32. Qd6 {[%clk 0:00:14.7]} 32... Nd5 {[%clk
0:01:58.6]} 33. Kg2 {[%clk 0:00:09.3]} 33... Qxd1 {[%clk 0:01:57.2]} 34. f3
{[%clk 0:00:09.8]} 34... Ne3+ {[%clk 0:01:55.1]} 35. Kg3 {[%clk 0:00:08.9]}
35... Qxd6+ {[%clk 0:01:55.9]} 0-1

[Event "Late-Titled-Tuesday-Blitz-September-19-2023"]
[Site "Chess.com"]
[Date "2023.09.19"]
[Round "11"]
[White "Parhamov"]
[Black "maciek_92"]
[Result "1-0"]
[WhiteElo "3035"]
[BlackElo "2772"]
[TimeControl "180+1"]
[EndTime "16:03:44 PDT"]
[Termination "Parhamov won on time"]

1. e4 {[%clk 0:03:00]} 1... c5 {[%clk 0:03:00.3]} 2. Nf3 {[%clk 0:02:59.9]} 2...
e6 {[%clk 0:03:01]} 3. d4 {[%clk 0:02:55.6]} 3... cxd4 {[%clk 0:03:01.9]} 4.
Nxd4 {[%clk 0:02:56.1]} 4... Nc6 {[%clk 0:03:02.4]} 5. Nc3 {[%clk 0:02:56.5]}
5... a6 {[%clk 0:03:02.7]} 6. a3 {[%clk 0:02:54.3]} 6... Qc7 {[%clk 0:02:58]} 7.
g3 {[%clk 0:02:53]} 7... Nf6 {[%clk 0:02:52.9]} 8. Bg2 {[%clk 0:02:51.2]} 8...
Nxd4 {[%clk 0:02:53.1]} 9. Qxd4 {[%clk 0:02:51]} 9... Bc5 {[%clk 0:02:53.8]} 10.
Qd3 {[%clk 0:02:49]} 10... h5 {[%clk 0:02:42.6]} 11. h3 {[%clk 0:02:47.9]} 11...
b5 {[%clk 0:02:24.3]} 12. Bf4 {[%clk 0:02:44.6]} 12... d6 {[%clk 0:01:33.3]} 13.
O-O-O {[%clk 0:02:38.5]} 13... e5 {[%clk 0:01:27.5]} 14. Be3 {[%clk 0:02:38.3]}
14... Be6 {[%clk 0:01:25.4]} 15. f4 {[%clk 0:02:24.1]} 15... Rc8 {[%clk
0:01:18.8]} 16. Bxc5 {[%clk 0:02:08.5]} 16... dxc5 {[%clk 0:01:18.9]} 17. Nd5
{[%clk 0:01:54.3]} 17... Qd8 {[%clk 0:00:21]} 18. Qc3 {[%clk 0:01:53.7]} 18...
exf4 {[%clk 0:00:16.4]} 19. Nxf4 {[%clk 0:01:46.4]} 19... Qe7 {[%clk 0:00:16.6]}
20. e5 {[%clk 0:01:45.8]} 20... Nd7 {[%clk 0:00:14.7]} 21. Rd6 {[%clk
0:01:44.5]} 21... h4 {[%clk 0:00:13.9]} 22. Rhd1 {[%clk 0:01:37.1]} 22... Qg5
{[%clk 0:00:06]} 23. Kb1 {[%clk 0:01:31.6]} 23... b4 {[%clk 0:00:04.6]} 24. axb4
{[%clk 0:01:30.1]} 24... Nxe5 {[%clk 0:00:01.9]} 25. Nxe6 {[%clk 0:01:28.9]} 1-0

[Event "Late-Titled-Tuesday-Blitz-September-19-2023"]
[Site "Chess.com"]
[Date "2023.09.19"]
[Round "11"]
[White "Miguelitro69"]
[Black "Cambek64"]
[Result "0-1"]
[WhiteElo "2291"]
[BlackElo "2462"]
[TimeControl "180+1"]
[EndTime "16:04:28 PDT"]
[Termination "Cambek64 won by resignation"]

1. e4 {[%clk 0:02:58.8]} 1... Nc6 {[%clk 0:02:24.8]} 2. Nf3 {[%clk 0:02:53.9]}
2... d5 {[%clk 0:02:24.6]} 3. e5 {[%clk 0:02:48.8]} 3... Bg4 {[%clk 0:02:23.3]}
4. d4 {[%clk 0:02:43.9]} 4... e6 {[%clk 0:02:22.4]} 5. c3 {[%clk 0:02:42.2]}
5... Nge7 {[%clk 0:02:21.5]} 6. h3 {[%clk 0:02:39.9]} 6... Bxf3 {[%clk
0:02:20.7]} 7. Qxf3 {[%clk 0:02:39.4]} 7... Ng6 {[%clk 0:02:21]} 8. Bd3 {[%clk
0:02:36.1]} 8... Qd7 {[%clk 0:02:20.5]} 9. h4 {[%clk 0:02:35.7]} 9... Be7 {[%clk
0:02:18.9]} 10. h5 {[%clk 0:02:35]} 10... Nf8 {[%clk 0:02:17.8]} 11. Qg4 {[%clk
0:02:31.8]} 11... Rg8 {[%clk 0:02:16.6]} 12. Nd2 {[%clk 0:02:09]} 12... O-O-O
{[%clk 0:02:14.8]} 13. Nf3 {[%clk 0:02:08.6]} 13... Re8 {[%clk 0:02:11.1]} 14.
Bg5 {[%clk 0:02:06.8]} 14... h6 {[%clk 0:02:03.5]} 15. Bxh6 {[%clk 0:02:01]}
15... f6 {[%clk 0:02:00.9]} 16. Bxg7 {[%clk 0:01:54.5]} 16... fxe5 {[%clk
0:01:58.3]} 17. dxe5 {[%clk 0:01:31.5]} 17... d4 {[%clk 0:01:54.7]} 18. cxd4
{[%clk 0:01:25.5]} 18... Rxg7 {[%clk 0:01:52.8]} 19. Qe4 {[%clk 0:00:57.8]}
19... Nb4 {[%clk 0:01:40.8]} 20. h6 {[%clk 0:00:51.2]} 20... Nxd3+ {[%clk
0:01:40.1]} 21. Qxd3 {[%clk 0:00:50.7]} 21... Rh7 {[%clk 0:01:17.1]} 22. O-O-O
{[%clk 0:00:42.7]} 22... Rd8 {[%clk 0:01:16.2]} 23. Kb1 {[%clk 0:00:41.3]} 23...
Qe8 {[%clk 0:01:16.3]} 24. Rc1 {[%clk 0:00:33.7]} 24... Qg6 {[%clk 0:01:15.7]}
25. Qxg6 {[%clk 0:00:19.2]} 25... Nxg6 {[%clk 0:01:14.3]} 26. g3 {[%clk
0:00:17.4]} 26... Rdh8 {[%clk 0:01:12]} 27. Nh4 {[%clk 0:00:16.9]} 27... Bxh4
{[%clk 0:01:00.1]} 28. gxh4 {[%clk 0:00:17.8]} 28... Rxh6 {[%clk 0:00:58.1]} 29.
Rhg1 {[%clk 0:00:18.3]} 29... Nxh4 {[%clk 0:00:57.5]} 30. Rc3 {[%clk 0:00:16.8]}
30... Nf5 {[%clk 0:00:55.7]} 31. Rgc1 {[%clk 0:00:16.3]} 31... c6 {[%clk
0:00:55.8]} 32. Rc4 {[%clk 0:00:15.3]} 32... Rd8 {[%clk 0:00:55.6]} 33. a4
{[%clk 0:00:16.2]} 33... Rxd4 {[%clk 0:00:55.1]} 0-1

[Event "Late-Titled-Tuesday-Blitz-September-19-2023"]
[Site "Chess.com"]
[Date "2023.09.19"]
[Round "11"]
[White "nihalsarin"]
[Black "FairChess_on_YouTube"]
[Result "0-1"]
[WhiteElo "3131"]
[BlackElo "3089"]
[TimeControl "180+1"]
[EndTime "16:04:30 PDT"]
[Termination "FairChess_on_YouTube won by resignation"]

1. e4 {[%clk 0:02:55.7]} 1... c5 {[%clk 0:02:57.6]} 2. Nf3 {[%clk 0:02:56.3]}
2... g6 {[%clk 0:02:57.3]} 3. c3 {[%clk 0:02:54.2]} 3... d5 {[%clk 0:02:53.9]}
4. exd5 {[%clk 0:02:53.8]} 4... Qxd5 {[%clk 0:02:54]} 5. d4 {[%clk 0:02:54.6]}
5... Bg7 {[%clk 0:02:54.3]} 6. Na3 {[%clk 0:02:55.2]} 6... Nf6 {[%clk 0:02:47]}
7. Bc4 {[%clk 0:02:43.7]} 7... Qe4+ {[%clk 0:02:46.4]} 8. Be2 {[%clk 0:02:41.3]}
8... O-O {[%clk 0:02:36.8]} 9. O-O {[%clk 0:02:40.9]} 9... Rd8 {[%clk
0:02:27.9]} 10. Re1 {[%clk 0:02:34.7]} 10... Nc6 {[%clk 0:01:53.6]} 11. Bc4
{[%clk 0:01:52.9]} 11... Qg4 {[%clk 0:01:48.6]} 12. Qb3 {[%clk 0:01:40.2]} 12...
e6 {[%clk 0:01:42.1]} 13. dxc5 {[%clk 0:01:40.3]} 13... Qh5 {[%clk 0:01:33.8]}
14. Bg5 {[%clk 0:01:37.4]} 14... h6 {[%clk 0:01:32]} 15. Bxf6 {[%clk 0:01:23]}
15... Bxf6 {[%clk 0:01:32.9]} 16. Qb5 {[%clk 0:01:23.2]} 16... Bd7 {[%clk
0:01:22.8]} 17. Qxb7 {[%clk 0:01:12]} 17... Rab8 {[%clk 0:01:22.3]} 18. Qc7
{[%clk 0:01:12.4]} 18... Rxb2 {[%clk 0:01:22.1]} 19. Rad1 {[%clk 0:00:48.9]}
19... Qxc5 {[%clk 0:01:17.5]} 20. Re2 {[%clk 0:00:49.6]} 20... Be8 {[%clk
0:01:05.7]} 21. Rxd8 {[%clk 0:00:10.3]} 21... Bxd8 {[%clk 0:01:06.6]} 22. Qf4
{[%clk 0:00:06.4]} 22... Rxe2 {[%clk 0:00:58.6]} 23. Bxe2 {[%clk 0:00:07.3]}
23... Qxa3 {[%clk 0:00:58.3]} 24. Qxh6 {[%clk 0:00:08.1]} 24... Qxa2 {[%clk
0:00:55.1]} 25. Bf1 {[%clk 0:00:06.2]} 25... Qa1 {[%clk 0:00:53.7]} 26. Qd2
{[%clk 0:00:05.9]} 26... Bf6 {[%clk 0:00:51.7]} 27. g3 {[%clk 0:00:06.3]} 27...
Qxc3 {[%clk 0:00:51]} 28. Qd1 {[%clk 0:00:07.1]} 28... Nd4 {[%clk 0:00:50.3]}
0-1

[Event "Late-Titled-Tuesday-Blitz-September-19-2023"]
[Site "Chess.com"]
[Date "2023.09.19"]
[Round "11"]
[White "filipluczak05"]
[Black "Bauman_Guy"]
[Result "1-0"]
[WhiteElo "2674"]
[BlackElo "2891"]
[TimeControl "180+1"]
[EndTime "16:04:30 PDT"]
[Termination "filipluczak05 won by checkmate"]

1. d4 {[%clk 0:03:00.9]} 1... Nf6 {[%clk 0:02:59.2]} 2. Nc3 {[%clk 0:03:01]}
2... d5 {[%clk 0:02:58.8]} 3. Bf4 {[%clk 0:03:00.9]} 3... c5 {[%clk 0:02:59]} 4.
e3 {[%clk 0:03:00.6]} 4... g6 {[%clk 0:02:59]} 5. dxc5 {[%clk 0:02:54.8]} 5...
Bg7 {[%clk 0:02:58.7]} 6. Bb5+ {[%clk 0:02:52.8]} 6... Nc6 {[%clk 0:02:57.5]} 7.
Nf3 {[%clk 0:02:51.9]} 7... O-O {[%clk 0:02:57.6]} 8. O-O {[%clk 0:02:50.8]}
8... Bg4 {[%clk 0:02:54.3]} 9. h3 {[%clk 0:02:48.1]} 9... Bxf3 {[%clk
0:02:54.6]} 10. Qxf3 {[%clk 0:02:48.8]} 10... e6 {[%clk 0:02:55.5]} 11. Bxc6
{[%clk 0:02:40.1]} 11... bxc6 {[%clk 0:02:55.1]} 12. Be5 {[%clk 0:02:39]} 12...
a5 {[%clk 0:02:49.4]} 13. Na4 {[%clk 0:02:33.5]} 13... Ne4 {[%clk 0:02:45.7]}
14. Bxg7 {[%clk 0:02:32.2]} 14... Kxg7 {[%clk 0:02:46.6]} 15. Rad1 {[%clk
0:02:30.7]} 15... Qe7 {[%clk 0:02:39.4]} 16. Qf4 {[%clk 0:02:14.8]} 16... e5
{[%clk 0:02:39.1]} 17. Qh2 {[%clk 0:02:13.2]} 17... f6 {[%clk 0:02:39]} 18. c4
{[%clk 0:02:04.1]} 18... dxc4 {[%clk 0:02:33.5]} 19. h4 {[%clk 0:01:55.8]} 19...
Rad8 {[%clk 0:02:28.1]} 20. h5 {[%clk 0:01:50.6]} 20... Nxc5 {[%clk 0:02:21.5]}
21. Nxc5 {[%clk 0:01:32.4]} 21... Qxc5 {[%clk 0:02:22.4]} 22. Qh4 {[%clk
0:01:31]} 22... Rd3 {[%clk 0:01:58.2]} 23. Rc1 {[%clk 0:01:26.6]} 23... c3
{[%clk 0:01:58.4]} 24. bxc3 {[%clk 0:00:57.2]} 24... Rfd8 {[%clk 0:01:51.3]} 25.
Qg4 {[%clk 0:00:40.1]} 25... R3d7 {[%clk 0:01:25.5]} 26. Kh2 {[%clk 0:00:28.4]}
26... Qd5 {[%clk 0:01:22.2]} 27. e4 {[%clk 0:00:25.4]} 27... Qd2 {[%clk
0:01:20.2]} 28. Rcd1 {[%clk 0:00:23.6]} 28... Qxd1 {[%clk 0:01:20.2]} 29. Rxd1
{[%clk 0:00:24.1]} 29... Rxd1 {[%clk 0:01:21.1]} 30. Qe6 {[%clk 0:00:24.1]}
30... R1d6 {[%clk 0:01:18.8]} 31. Qe7+ {[%clk 0:00:24.2]} 31... Kh6 {[%clk
0:01:19]} 32. hxg6 {[%clk 0:00:24]} 32... hxg6 {[%clk 0:01:19.9]} 33. Qa7 {[%clk
0:00:23.5]} 33... Rd2 {[%clk 0:01:15.6]} 34. Qxa5 {[%clk 0:00:22.4]} 34... R8d3
{[%clk 0:01:13.8]} 35. Qa8 {[%clk 0:00:20.1]} 35... Rxf2 {[%clk 0:01:07.5]} 36.
Qxc6 {[%clk 0:00:15.3]} 36... Rdd2 {[%clk 0:01:06.4]} 37. Qc8 {[%clk 0:00:13.3]}
37... Rxg2+ {[%clk 0:01:06.2]} 38. Kh3 {[%clk 0:00:13.6]} 38... Rxa2 {[%clk
0:01:03.2]} 39. Qh8+ {[%clk 0:00:12.7]} 39... Kg5 {[%clk 0:01:03.1]} 40. Qh4#
{[%clk 0:00:13.6]} 1-0

[Event "Late-Titled-Tuesday-Blitz-September-19-2023"]
[Site "Chess.com"]
[Date "2023.09.19"]
[Round "11"]
[White "Defenstrator"]
[Black "CFalcons8"]
[Result "0-1"]
[WhiteElo "2329"]
[BlackElo "2278"]
[TimeControl "180+1"]
[EndTime "16:04:34 PDT"]
[Termination "CFalcons8 won by checkmate"]

1. d4 {[%clk 0:03:00.1]} 1... Nf6 {[%clk 0:02:57.3]} 2. Nf3 {[%clk 0:02:57]}
2... e6 {[%clk 0:02:51.6]} 3. c4 {[%clk 0:02:26.9]} 3... b6 {[%clk 0:02:50.8]}
4. g3 {[%clk 0:02:26.4]} 4... Bb7 {[%clk 0:02:50.6]} 5. Bg2 {[%clk 0:02:27.2]}
5... Be7 {[%clk 0:02:46.8]} 6. O-O {[%clk 0:02:27.1]} 6... O-O {[%clk
0:02:45.5]} 7. Qc2 {[%clk 0:02:23.3]} 7... d5 {[%clk 0:02:43.6]} 8. Bf4 {[%clk
0:02:02.1]} 8... Nbd7 {[%clk 0:02:41.1]} 9. Nc3 {[%clk 0:01:48.8]} 9... dxc4
{[%clk 0:02:35.8]} 10. Ne5 {[%clk 0:01:35.2]} 10... Bxg2 {[%clk 0:02:26.8]} 11.
Kxg2 {[%clk 0:01:35.5]} 11... Nxe5 {[%clk 0:02:26.7]} 12. Bxe5 {[%clk
0:01:28.8]} 12... Nd5 {[%clk 0:02:18.9]} 13. g4 {[%clk 0:01:02.4]} 13... c5
{[%clk 0:02:01.6]} 14. dxc5 {[%clk 0:00:57]} 14... Bxc5 {[%clk 0:02:02.5]} 15.
Ne4 {[%clk 0:00:57.2]} 15... Rc8 {[%clk 0:01:49]} 16. h4 {[%clk 0:00:44.6]}
16... Qxh4 {[%clk 0:01:46.9]} 17. Rh1 {[%clk 0:00:41.8]} 17... Qxg4+ {[%clk
0:01:46.8]} 18. Ng3 {[%clk 0:00:38.3]} 18... g6 {[%clk 0:01:45.4]} 19. Rxh7
{[%clk 0:00:35.8]} 19... Nf4+ {[%clk 0:01:40.8]} 20. Bxf4 {[%clk 0:00:32]} 20...
Kxh7 {[%clk 0:01:40.4]} 21. Rh1+ {[%clk 0:00:24.2]} 21... Kg8 {[%clk 0:01:13.1]}
22. Bh6 {[%clk 0:00:19.7]} 22... Rfd8 {[%clk 0:01:09.1]} 23. f3 {[%clk
0:00:09.3]} 23... Qd4 {[%clk 0:01:04.7]} 24. Kh3 {[%clk 0:00:03.3]} 24... Rd5
{[%clk 0:00:59.9]} 25. Ne4 {[%clk 0:00:02.6]} 25... Rh5+ {[%clk 0:00:58.2]} 26.
Kg2 {[%clk 0:00:02.2]} 26... Rxh1 {[%clk 0:00:58.3]} 27. e3 {[%clk 0:00:01.9]}
27... Qd1 {[%clk 0:00:55.9]} 28. Nf6+ {[%clk 0:00:02.8]} 28... Kh8 {[%clk
0:00:55]} 29. Qc3 {[%clk 0:00:02.9]} 29... Qg1# {[%clk 0:00:54.2]} 0-1

[Event "Late-Titled-Tuesday-Blitz-September-19-2023"]
[Site "Chess.com"]
[Date "2023.09.19"]
[Round "11"]
[White "Botvinnak"]
[Black "GMJustin"]
[Result "1-0"]
[WhiteElo "2337"]
[BlackElo "2233"]
[TimeControl "180+1"]
[EndTime "16:04:37 PDT"]
[Termination "Botvinnak won on time"]

1. b3 {[%clk 0:02:57.9]} 1... e5 {[%clk 0:02:38.3]} 2. Bb2 {[%clk 0:02:57.8]}
2... Nc6 {[%clk 0:02:38.1]} 3. e3 {[%clk 0:02:56.5]} 3... d5 {[%clk 0:02:38]} 4.
Bb5 {[%clk 0:02:54.9]} 4... f6 {[%clk 0:02:37.9]} 5. c4 {[%clk 0:02:53.6]} 5...
a6 {[%clk 0:02:29.7]} 6. Ba4 {[%clk 0:02:49.3]} 6... dxc4 {[%clk 0:01:50.6]} 7.
bxc4 {[%clk 0:02:47]} 7... Be6 {[%clk 0:01:51.2]} 8. d3 {[%clk 0:02:45.7]} 8...
Bb4+ {[%clk 0:01:48.8]} 9. Bc3 {[%clk 0:02:43.3]} 9... Bxc3+ {[%clk 0:01:42]}
10. Nxc3 {[%clk 0:02:43.4]} 10... Ne7 {[%clk 0:01:42.4]} 11. Rb1 {[%clk
0:02:41.7]} 11... Rb8 {[%clk 0:01:39.2]} 12. Nge2 {[%clk 0:02:41]} 12... O-O
{[%clk 0:01:38.5]} 13. O-O {[%clk 0:02:41.4]} 13... Bf5 {[%clk 0:01:23.7]} 14.
e4 {[%clk 0:02:39]} 14... Be6 {[%clk 0:01:22.2]} 15. Nd5 {[%clk 0:02:39.6]}
15... Qd6 {[%clk 0:01:06.6]} 16. f4 {[%clk 0:02:39.3]} 16... exf4 {[%clk
0:01:04.2]} 17. Nexf4 {[%clk 0:02:39.1]} 17... Nd4 {[%clk 0:01:00.3]} 18. Rc1
{[%clk 0:02:32.6]} 18... c6 {[%clk 0:00:47.3]} 19. c5 {[%clk 0:02:32.7]} 19...
Qd8 {[%clk 0:00:45.3]} 20. Nxe6 {[%clk 0:02:16]} 20... Nxe6 {[%clk 0:00:44.5]}
21. Nxe7+ {[%clk 0:02:14.4]} 21... Qxe7 {[%clk 0:00:44.4]} 22. Bb3 {[%clk
0:02:14.3]} 22... Kh8 {[%clk 0:00:41.4]} 23. d4 {[%clk 0:02:13.1]} 23... Rbd8
{[%clk 0:00:36.9]} 24. Rc4 {[%clk 0:02:11.4]} 24... Nxd4 {[%clk 0:00:32.2]} 25.
Kh1 {[%clk 0:02:00.6]} 25... Qe5 {[%clk 0:00:30.3]} 26. h3 {[%clk 0:01:54.5]}
26... Nf5 {[%clk 0:00:23.7]} 27. exf5 {[%clk 0:01:40.4]} 27... Rxd1 {[%clk
0:00:22.8]} 28. Bxd1 {[%clk 0:01:40.5]} 28... Rd8 {[%clk 0:00:20]} 29. Bb3
{[%clk 0:01:40.2]} 29... h5 {[%clk 0:00:17.5]} 30. Rh4 {[%clk 0:01:39.9]} 30...
g6 {[%clk 0:00:12.6]} 31. fxg6 {[%clk 0:01:36.9]} 31... Kg7 {[%clk 0:00:11.8]}
32. Bd1 {[%clk 0:01:32.4]} 32... Rd2 {[%clk 0:00:10.7]} 33. Bf3 {[%clk
0:01:28.7]} 33... Qg3 {[%clk 0:00:09.6]} 34. Rxh5 {[%clk 0:01:28.7]} 34... Kxg6
{[%clk 0:00:09.3]} 35. Rh8 {[%clk 0:01:27.6]} 35... Kg7 {[%clk 0:00:08.1]} 36.
Re8 {[%clk 0:01:25.6]} 36... Rxa2 {[%clk 0:00:07.2]} 37. Rd1 {[%clk 0:01:22.4]}
37... Rf2 {[%clk 0:00:02.1]} 38. Rd7+ {[%clk 0:01:21.4]} 38... Kh6 {[%clk
0:00:02.2]} 39. Rh8+ {[%clk 0:01:21.4]} 39... Kg5 {[%clk 0:00:01.9]} 40. Rg7+
{[%clk 0:01:20.6]} 40... Kf4 {[%clk 0:00:02.1]} 41. Rxg3 {[%clk 0:01:20]} 41...
Kxg3 {[%clk 0:00:02.5]} 42. Rg8+ {[%clk 0:01:19.8]} 42... Kf4 {[%clk 0:00:02.8]}
43. Rg7 {[%clk 0:01:19.2]} 43... Rc2 {[%clk 0:00:02.8]} 44. Rxb7 {[%clk
0:01:18.4]} 44... Rxc5 {[%clk 0:00:03.2]} 45. Rb6 {[%clk 0:01:18.6]} 45... a5
{[%clk 0:00:03.6]} 46. Bxc6 {[%clk 0:01:18.6]} 1-0